fUST/lending_fUST_20240721
["ID","MTS","AMOUNT","RATE_DAILY","PERIOD"]
[332790214,1721525440662,-510.80465162,0.00013698,2]
[332790215,1721525440672,-551.98589564,0.00013698,2]
[332790216,1721525440681,-500.0,0.00013698,2]
[332790217,1721525440690,-500.0,0.00013698,2]
[332790218,1721525440703,-500.0,0.00013698,2]
[332790219,1721525440712,-500.0,0.00013698,2]
[332790220,1721525440721,-740.35,0.00013698,2]
[332790221,1721525440730,-500.0,0.00013698,2]
[332790222,1721525440740,-500.0,0.00013698,2]
[332790223,1721525440749,-500.0,0.00013698,2]
[332790224,1721525440759,-1798.09,0.00013698,2]
[332790225,1721525440772,-502.01108199,0.00013698,2]
[332790226,1721525440781,-500.0,0.00013698,2]
[332790227,1721525440790,-502.41928809,0.00013698,2]
[332790228,1721525440800,-500.0,0.00013698,2]
[332790229,1721525440809,-500.0,0.00013698,2]
[332790230,1721525440819,-500.0,0.00013698,2]
[332790231,1721525440828,-500.0,0.00013698,2]
[332790232,1721525440837,-500.0,0.00013698,2]
[332790233,1721525440847,-500.0,0.00013698,2]
[332790234,1721525440857,-777.52,0.00013698,2]
[332790235,1721525440866,-500.0,0.00013698,2]
[332790236,1721525440875,-500.0,0.00013698,2]
[332790237,1721525440884,-500.0,0.00013698,2]
[332790238,1721525440894,-500.0,0.00013698,2]
[332790239,1721525440903,-500.0,0.00013698,2]
[332790240,1721525440913,-500.0,0.00013698,2]
[332790241,1721525440923,-500.0,0.00013698,2]
[332790242,1721525440931,-2577.12,0.00013698,2]
[332790243,1721525440940,-500.0,0.00013698,2]
[332790244,1721525440950,-608.45,0.00013698,2]
[332790245,1721525440959,-500.0,0.00013698,2]
[332790246,1721525440968,-500.0,0.00013698,2]
[332790247,1721525440979,-500.0,0.00013698,2]
[332790248,1721525440988,-733.93,0.00013698,2]
[332790249,1721525440998,-1149.27,0.00013698,2]
[332790250,1721525441007,-612.52,0.00013698,2]
[332790251,1721525441017,-500.0,0.00013698,2]
[332790252,1721525441028,-979.52,0.00013698,2]
[332790253,1721525441037,-1944.33,0.00013698,2]
[332790254,1721525441049,-759.86,0.00013698,2]
[332790255,1721525441058,-510.43,0.00013698,2]
[332790256,1721525441067,-861.76,0.00013698,2]
[332790257,1721525441076,-500.0,0.00013698,2]
[332790258,1721525441086,-1500.22,0.00013698,2]
[332790259,1721525441096,-2000.0,0.00013698,2]
[332790260,1721525441106,-520.77843644,0.00013698,2]
[332790261,1721525441115,-500.0,0.00013698,2]
[332790262,1721525441125,-500.0,0.00013698,2]
[332790263,1721525441134,-500.0,0.00013698,2]
[332790264,1721525441143,-500.0,0.00013698,2]
[332790265,1721525441152,-500.0,0.00013698,2]
[332790266,1721525441162,-500.0,0.00013698,2]
[332790267,1721525441171,-500.0,0.00013698,2]
[332790268,1721525441181,-500.0,0.00013698,2]
[332790269,1721525441191,-634.21,0.00013698,2]
[332790270,1721525441200,-500.0,0.00013698,2]
[332790271,1721525441209,-500.0,0.00013698,2]
[332790272,1721525441219,-500.0,0.00013698,2]
[332790273,1721525441229,-464.7569869,0.00013698,2]
[332790274,1721525441238,-500.0,0.00013698,2]
[332790275,1721525441247,-500.0,0.00013698,2]
[332790276,1721525441256,-500.0,0.00013698,2]
[332790277,1721525441265,-500.0,0.00013698,2]
[332790278,1721525441276,-500.0,0.00013698,2]
[332790279,1721525441285,-500.0,0.00013698,2]
[332790280,1721525441295,-619.86,0.00013698,2]
[332790281,1721525441304,-500.0,0.00013698,2]
[332790282,1721525441313,-500.0,0.00013698,2]
[332790283,1721525441323,-500.0,0.00013698,2]
[332790284,1721525441333,-500.0,0.00013698,2]
[332790285,1721525441342,-500.0,0.00013698,2]
[332790286,1721525441351,-500.0,0.00013698,2]
[332790287,1721525441361,-511.13,0.00013698,2]
[332790288,1721525441370,-500.0,0.00013698,2]
[332790289,1721525441380,-342.45378004,0.00013698,2]
[332790290,1721525441389,-500.0,0.00013698,2]
[332790291,1721525441398,-500.0,0.00013698,2]
[332790292,1721525441408,-500.0,0.00013698,2]
[332790293,1721525441417,-501.41672592,0.00013698,2]
[332790294,1721525441427,-500.0,0.00013698,2]
[332790295,1721525441436,-1053.62,0.00013698,2]
[332790296,1721525441445,-500.0,0.00013698,2]
[332790297,1721525441455,-500.0,0.00013698,2]
[332790298,1721525441464,-500.0,0.00013698,2]
[332790299,1721525441473,-535.93,0.00013698,2]
[332790300,1721525441483,-500.0,0.00013698,2]
[332790301,1721525441493,-2722.57,0.00013698,2]
[332790302,1721525441502,-500.0,0.00013698,2]
[332790303,1721525441512,-502.60980733,0.00013698,2]
[332790304,1721525441521,-500.0,0.00013698,2]
[332790305,1721525441530,-564.55397441,0.00013698,2]
[332790306,1721525441539,-500.0,0.00013698,2]
[332790307,1721525441548,-500.0,0.00013698,2]
[332790308,1721525441557,-500.0,0.00013698,2]
[332790309,1721525441567,-456.45110293,0.00013698,2]
[332790310,1721525441576,-500.0,0.00013698,2]
[332790311,1721525441586,-500.0,0.00013698,2]
[332790312,1721525441595,-500.0,0.00013698,2]
[332790313,1721525441605,-500.0,0.00013698,2]
[332790314,1721525441614,-512.4,0.00013698,2]
[332790315,1721525441623,-500.0,0.00013698,2]
[332790316,1721525441632,-500.0,0.00013698,2]
[332790317,1721525441641,-500.0,0.00013698,2]
[332790318,1721525441650,-500.0,0.00013698,2]
[332790319,1721525441659,-500.0,0.00013698,2]
[332790320,1721525441669,-503.48851002,0.00013698,2]
[332790321,1721525441678,-501.71905467,0.00013698,2]
[332790322,1721525441688,-500.0,0.00013698,2]
[332790323,1721525441701,-500.0,0.00013698,2]
[332790324,1721525441710,-1089.43,0.00013698,2]
[332790325,1721525441719,-3988.07,0.00013698,2]
[332790326,1721525441729,-500.0,0.00013698,2]
[332790327,1721525441739,-500.0,0.00013698,2]
[332790328,1721525441750,-500.0,0.00013698,2]
[332790329,1721525441759,-808.78,0.00013698,2]
[332790330,1721525441769,-527.07,0.00013698,2]
[332790331,1721525441780,-1458.41,0.00013698,2]
[332790332,1721525441791,-537.9785671,0.00013698,2]
[332790333,1721525441800,-500.0,0.00013698,2]
[332790334,1721525441810,-500.0,0.00013698,2]
[332790335,1721525441819,-500.0,0.00013698,2]
[332790336,1721525441829,-500.0,0.00013698,2]
[332790337,1721525441839,-500.0,0.00013698,2]
[332790338,1721525441849,-1674.3,0.00013698,2]
[332790339,1721525441859,-500.0,0.00013698,2]
[332790340,1721525441870,-500.0,0.00013698,2]
[332790341,1721525441880,-526.07354938,0.00013698,2]
[332790342,1721525441891,-819.4,0.00013698,2]
[332790343,1721525441902,-500.0,0.00013698,2]
[332790344,1721525441912,-500.0,0.00013698,2]
[332790345,1721525441923,-500.0,0.00013698,2]
[332790346,1721525441934,-500.0,0.00013698,2]
[332790347,1721525441946,-556.42,0.00013698,2]
[332790348,1721525441958,-500.0,0.00013698,2]
[332790349,1721525441968,-477.10124464,0.00013698,2]
[332790350,1721525441979,-505.51177365,0.00013698,2]
[332790351,1721525441989,-500.0,0.00013698,2]
[332790352,1721525441999,-500.0,0.00013698,2]
[332790353,1721525442009,-500.0,0.00013698,2]
[332790354,1721525442019,-500.0,0.00013698,2]
[332790355,1721525442028,-500.0,0.00013698,2]
[332790356,1721525442038,-500.0,0.00013698,2]
[332790357,1721525442047,-500.0,0.00013698,2]
[332790358,1721525442057,-592.17800272,0.00013698,2]
[332790359,1721525442067,-500.0,0.00013698,2]
[332790360,1721525442077,-870.08,0.00013698,2]
[332790361,1721525442086,-503.66910884,0.00013698,2]
[332790362,1721525442096,-500.0,0.00013698,2]
[332790363,1721525442106,-500.0,0.00013698,2]
[332790364,1721525442116,-500.0,0.00013698,2]
[332790365,1721525442126,-500.0,0.00013698,2]
[332790366,1721525442135,-501.14776022,0.00013698,2]
[332790367,1721525442145,-592.31,0.00013698,2]
[332790368,1721525442154,-500.0,0.00013698,2]
[332790369,1721525442164,-500.0,0.00013698,2]
[332790370,1721525442173,-1007.27,0.00013698,2]
[332790371,1721525442183,-552.98,0.00013698,2]
[332790372,1721525442193,-500.0,0.00013698,2]
[332790373,1721525442202,-500.0,0.00013698,2]
[332790374,1721525442212,-500.0,0.00013698,2]
[332790375,1721525442221,-500.0,0.00013698,2]
[332790376,1721525442231,-507.41895197,0.00013698,2]
[332790377,1721525442240,-500.0,0.00013698,2]
[332790378,1721525442249,-500.0,0.00013698,2]
[332790379,1721525442259,-500.0,0.00013698,2]
[332790380,1721525442271,-2595.83,0.00013698,2]
[332790381,1721525442281,-823.74,0.00013698,2]
[332790382,1721525442290,-500.0,0.00013698,2]
[332790383,1721525442299,-1212.0,0.00013698,2]
[332790384,1721525442309,-500.0,0.00013698,2]
[332790385,1721525442319,-500.0,0.00013698,2]
[332790386,1721525442328,-501.79,0.00013698,2]
[332790387,1721525442338,-500.0,0.00013698,2]
[332790388,1721525442348,-500.0,0.00013698,2]
[332790389,1721525442357,-500.0,0.00013698,2]
[332790390,1721525442366,-500.0,0.00013698,2]
[332790391,1721525442376,-500.0,0.00013698,2]
[332790392,1721525442385,-500.0,0.00013698,2]
[332790393,1721525442395,-184.7031653,0.00013698,2]
[332790394,1721525442405,-807.37,0.00013698,2]
[332790395,1721525442415,-500.0,0.00013698,2]
[332790396,1721525442424,-500.0,0.00013698,2]
[332790397,1721525442433,-500.0,0.00013698,2]
[332790398,1721525442443,-500.0,0.00013698,2]
[332790399,1721525442452,-500.0,0.00013698,2]
[332790400,1721525442462,-512.22231295,0.00013698,2]
[332790401,1721525442471,-500.0,0.00013698,2]
[332790402,1721525442481,-500.0,0.00013698,2]
[332790403,1721525442491,-530.47,0.00013698,2]
[332790404,1721525442501,-500.0,0.00013698,2]
[332790405,1721525442511,-512.82149887,0.00013698,2]
[332790406,1721525442522,-823.45,0.00013698,2]
[332790407,1721525442531,-797.08,0.00013698,2]
[332790408,1721525442541,-500.0,0.00013698,2]
[332790409,1721525442551,-500.0,0.00013698,2]
[332790410,1721525442560,-461.0806971,0.00013698,2]
[332790411,1721525442569,-500.0,0.00013698,2]
[332790412,1721525442579,-500.0,0.00013698,2]
[332790413,1721525442588,-500.0,0.00013698,2]
[332790414,1721525442598,-500.0,0.00013698,2]
[332790415,1721525442608,-758.56,0.00013698,2]
[332790416,1721525442619,-2495.91,0.00013698,2]
[332790417,1721525442629,-500.0,0.00013698,2]
[332790418,1721525442639,-500.0,0.00013698,2]
[332790419,1721525442650,-500.0,0.00013698,2]
[332790420,1721525442660,-631.89,0.00013698,2]
[332790421,1721525442672,-501.47697445,0.00013698,2]
[332790422,1721525442684,-1621.62,0.00013698,2]
[332790423,1721525442696,-500.0,0.00013698,2]
[332790424,1721525442708,-500.0,0.00013698,2]
[332790425,1721525442719,-500.0,0.00013698,2]
[332790426,1721525442730,-500.0,0.00013698,2]
[332790427,1721525442741,-500.0,0.00013698,2]
[332790428,1721525442753,-500.0,0.00013698,2]
[332790429,1721525442765,-500.0,0.00013698,2]
[332790430,1721525442775,-500.0,0.00013698,2]
[332790431,1721525442785,-1542.18,0.00013698,2]
[332790432,1721525442794,-500.0,0.00013698,2]
[332790433,1721525442806,-500.0,0.00013698,2]
[332790434,1721525442816,-500.0,0.00013698,2]
[332790435,1721525442826,-500.0,0.00013698,2]
[332790436,1721525442835,-500.0,0.00013698,2]
[332790437,1721525442845,-500.0,0.00013698,2]
[332790438,1721525442855,-500.0,0.00013698,2]
[332790439,1721525442864,-500.0,0.00013698,2]
[332790440,1721525442874,-500.0,0.00013698,2]
[332790441,1721525442883,-500.0,0.00013698,2]
[332790442,1721525442892,-500.0,0.00013698,2]
[332790443,1721525442901,-500.0,0.00013698,2]
[332790444,1721525442910,-500.0,0.00013698,2]
[332790445,1721525442919,-500.0,0.00013698,2]
[332790446,1721525442929,-500.0,0.00013698,2]
[332790447,1721525442939,-500.0,0.00013698,2]
[332790448,1721525442949,-331.2748699,0.00013698,2]
[332790450,1721525442959,-500.0,0.00013698,2]
[332790452,1721525442969,-500.0,0.00013698,2]
[332790454,1721525442979,-500.0,0.00013698,2]
[332790455,1721525442990,-500.0,0.00013698,2]
[332790456,1721525443000,-509.288735,0.00013698,2]
[332790457,1721525443010,-1869.55,0.00013698,2]
[332790458,1721525443021,-500.0,0.00013698,2]
[332790459,1721525443030,-500.0,0.00013698,2]
[332790460,1721525443040,-500.0,0.00013698,2]
[332790461,1721525443049,-500.0,0.00013698,2]
[332790462,1721525443058,-500.0,0.00013698,2]
[332790464,1721525443067,-500.0,0.00013698,2]
[332790465,1721525443078,-500.0,0.00013698,2]
[332790466,1721525443088,-500.0,0.00013698,2]
[332790467,1721525443097,-500.0,0.00013698,2]
[332790468,1721525443107,-500.0,0.00013698,2]
[332790469,1721525443118,-500.0,0.00013698,2]
[332790470,1721525443129,-1691.21,0.00013698,2]
[332790471,1721525443139,-500.0,0.00013698,2]
[332790472,1721525443150,-500.0,0.00013698,2]
[332790473,1721525443160,-500.0,0.00013698,2]
[332790474,1721525443170,-519.20187888,0.00013698,2]
[332790475,1721525443180,-500.4941119,0.00013698,2]
[332790476,1721525443191,-500.0,0.00013698,2]
[332790478,1721525443201,-1798.73,0.00013698,2]
[332790480,1721525443212,-500.0,0.00013698,2]
[332790482,1721525443223,-500.0,0.00013698,2]
[332790483,1721525443234,-500.0,0.00013698,2]
[332790485,1721525443245,-3149.53,0.00013698,2]
[332790487,1721525443256,-500.0,0.00013698,2]
[332790488,1721525443265,-500.0,0.00013698,2]
[332790489,1721525443275,-500.0,0.00013698,2]
[332790490,1721525443285,-500.0,0.00013698,2]
[332790491,1721525443295,-500.0,0.00013698,2]
[332790492,1721525443305,-500.0,0.00013698,2]
[332790493,1721525443315,-500.0,0.00013698,2]
[332790494,1721525443326,-500.0,0.00013698,2]
[332790495,1721525443336,-500.0,0.00013698,2]
[332790496,1721525443346,-500.0,0.00013698,2]
[332790497,1721525443356,-500.0,0.00013698,2]
[332790498,1721525443366,-245.72312322,0.00013698,2]
[332790500,1721525443376,-532.23,0.00013698,2]
[332790502,1721525443388,-500.0,0.00013698,2]
[332790504,1721525443399,-500.0,0.00013698,2]
[332790505,1721525443409,-500.0,0.00013698,2]
[332790507,1721525443419,-500.0,0.00013698,2]
[332790508,1721525443429,-500.0,0.00013698,2]
[332790509,1721525443439,-664.18,0.00013698,2]
[332790510,1721525443448,-500.0,0.00013698,2]
[332790511,1721525443458,-500.0,0.00013698,2]
[332790512,1721525443467,-500.0,0.00013698,2]
[332790513,1721525443477,-500.0,0.00013698,2]
[332790514,1721525443486,-1195.14,0.00013698,2]
[332790515,1721525443496,-500.0,0.00013698,2]
[332790516,1721525443506,-721.67,0.00013698,2]
[332790517,1721525443515,-500.0,0.00013698,2]
[332790519,1721525443525,-2240.91,0.00013698,2]
[332790521,1721525443535,-500.0,0.00013698,2]
[332790524,1721525443544,-1049.58,0.00013698,2]
[332790526,1721525443554,-500.0,0.00013698,2]
[332790529,1721525443564,-813.74,0.00013698,2]
[332790532,1721525443574,-7370.76,0.00013698,2]
[332790534,1721525443583,-1549.23,0.00013698,2]
[332790536,1721525443594,-928.86,0.00013698,2]
[332790537,1721525443604,-500.0,0.00013698,2]
[332790538,1721525443614,-500.0,0.00013698,2]
[332790539,1721525443623,-500.0,0.00013698,2]
[332790540,1721525443633,-854.8,0.00013698,2]
[332790541,1721525443643,-500.0,0.00013698,2]
[332790542,1721525443652,-816.53,0.00013698,2]
[332790543,1721525443662,-500.0,0.00013698,2]
[332790544,1721525443672,-586.95214399,0.00013698,2]
[332790545,1721525443681,-500.0,0.00013698,2]
[332790546,1721525443691,-500.0,0.00013698,2]
[332790547,1721525443706,-171.07781714,0.00013698,2]
[332790548,1721525443716,-500.0,0.00013698,2]
[332790549,1721525443726,-3769.53,0.00013698,2]
[332790550,1721525443735,-2016.9,0.00013698,2]
[332790551,1721525443747,-500.0,0.00013698,2]
[332790552,1721525443758,-606.28,0.00013698,2]
[332790553,1721525443772,-500.0,0.00013698,2]
[332790554,1721525443782,-500.0,0.00013698,2]
[332790555,1721525443792,-500.0,0.00013698,2]
[332790556,1721525443802,-1304.02,0.00013698,2]
[332790557,1721525443812,-500.0,0.00013698,2]
[332790558,1721525443822,-500.0,0.00013698,2]
[332790559,1721525443832,-500.0,0.00013698,2]
[332790560,1721525443842,-500.0,0.00013698,2]
[332790561,1721525443852,-500.0,0.00013698,2]
[332790562,1721525443862,-557.73,0.00013698,2]
[332790563,1721525443871,-500.0,0.00013698,2]
[332790564,1721525443881,-500.0,0.00013698,2]
[332790565,1721525443891,-500.0,0.00013698,2]
[332790566,1721525443901,-500.0,0.00013698,2]
[332790567,1721525443910,-524.86017018,0.00013698,2]
[332790568,1721525443920,-627.68,0.00013698,2]
[332790569,1721525443930,-1766.35,0.00013698,2]
[332790570,1721525443939,-500.0,0.00013698,2]
[332790571,1721525443949,-500.0,0.00013698,2]
[332790572,1721525443959,-634.12,0.00013698,2]
[332790573,1721525443968,-719.14,0.00013698,2]
[332790574,1721525443978,-500.0,0.00013698,2]
[332790576,1721525443988,-2935.33,0.00013698,2]
[332790578,1721525443998,-500.0,0.00013698,2]
[332790580,1721525444007,-500.0,0.00013698,2]
[332790582,1721525444018,-1460.09,0.00013698,2]
[332790583,1721525444028,-623.85,0.00013698,2]
[332790584,1721525444038,-500.0,0.00013698,2]
[332790585,1721525444048,-1019.12,0.00013698,2]
[332790586,1721525444057,-500.0,0.00013698,2]
[332790587,1721525444067,-500.0,0.00013698,2]
[332790588,1721525444077,-500.0,0.00013698,2]
[332790589,1721525444087,-500.0,0.00013698,2]
[332790590,1721525444096,-1022.55,0.00013698,2]
[332790591,1721525444106,-500.0,0.00013698,2]
[332790592,1721525444116,-556.93,0.00013698,2]
[332790593,1721525444125,-578.0,0.00013698,2]
[332790594,1721525444135,-1611.19,0.00013698,2]
[332790595,1721525444145,-500.0,0.00013698,2]
[332790596,1721525444155,-651.45,0.00013698,2]
[332790597,1721525444164,-500.0,0.00013698,2]
[332790598,1721525444174,-500.0,0.00013698,2]
[332790599,1721525444184,-2173.33,0.00013698,2]
[332790600,1721525444194,-500.0,0.00013698,2]
[332790601,1721525444204,-500.08985855,0.00013698,2]
[332790602,1721525444213,-500.0,0.00013698,2]
[332790603,1721525444223,-500.0,0.00013698,2]
[332790604,1721525444233,-500.0,0.00013698,2]
[332790605,1721525444243,-500.0,0.00013698,2]
[332790606,1721525444422,-500.0,0.00013698,2]
[332790607,1721525444432,-500.0,0.00013698,2]
[332790608,1721525444441,-500.0,0.00013698,2]
[332790609,1721525444451,-500.0,0.00013698,2]
[332790610,1721525444462,-500.0,0.00013698,2]
[332790611,1721525444472,-500.0,0.00013698,2]
[332790612,1721525444482,-500.0,0.00013698,2]
[332790613,1721525444492,-551.12,0.00013698,2]
[332790614,1721525444502,-500.0,0.00013698,2]
[332790615,1721525444513,-500.0,0.00013698,2]
[332790617,1721525444524,-500.0,0.00013698,2]
[332790619,1721525444538,-500.0,0.00013698,2]
[332790620,1721525444548,-500.0,0.00013698,2]
[332790621,1721525444558,-500.0,0.00013698,2]
[332790622,1721525444568,-674.78,0.00013698,2]
[332790623,1721525444578,-565.54,0.00013698,2]
[332790624,1721525444588,-744.4,0.00013698,2]
[332790625,1721525444598,-2016.0,0.00013698,2]
[332790626,1721525444608,-1013.9,0.00013698,2]
[332790627,1721525444618,-500.0,0.00013698,2]
[332790628,1721525444628,-500.0,0.00013698,2]
[332790629,1721525444638,-3665.51,0.00013698,2]
[332790630,1721525444648,-500.0,0.00013698,2]
[332790631,1721525444657,-7946.43,0.00013698,2]
[332790632,1721525444667,-500.0,0.00013698,2]
[332790633,1721525444677,-500.0,0.00013698,2]
[332790634,1721525444687,-949.43,0.00013698,2]
[332790635,1721525444698,-500.0,0.00013698,2]
[332790636,1721525444709,-500.0,0.00013698,2]
[332790637,1721525444718,-1815.08,0.00013698,2]
[332790638,1721525444728,-512.33884559,0.00013698,2]
[332790639,1721525444737,-500.0,0.00013698,2]
[332790640,1721525444747,-2472.19,0.00013698,2]
[332790641,1721525444757,-5010.21,0.00013698,2]
[332790642,1721525444767,-505.7857432,0.00013698,2]
[332790643,1721525444777,-624.4,0.00013698,2]
[332790644,1721525444787,-471.65661398,0.00013698,2]
[332790645,1721525444796,-500.0,0.00013698,2]
[332790646,1721525444806,-500.0,0.00013698,2]
[332790647,1721525444815,-500.0,0.00013698,2]
[332790648,1721525444826,-500.96592398,0.00013698,2]
[332790649,1721525444835,-500.0,0.00013698,2]
[332790650,1721525444845,-500.0,0.00013698,2]
[332790651,1721525444855,-1310.11,0.00013698,2]
[332790652,1721525444865,-2959.08,0.00013698,2]
[332790653,1721525444875,-2044.79,0.00013698,2]
[332790654,1721525444884,-500.0,0.00013698,2]
[332790655,1721525444895,-16155.93,0.00013698,2]
[332790656,1721525444905,-500.81614324,0.00013698,2]
[332790657,1721525444914,-500.0,0.00013698,2]
[332790658,1721525444923,-7812.42,0.00013698,2]
[332790659,1721525444933,-500.0,0.00013698,2]
[332790660,1721525444943,-501.29419541,0.00013698,2]
[332790661,1721525444953,-572.0,0.00013698,2]
[332790662,1721525444962,-5050.51,0.00013698,2]
[332790663,1721525444972,-500.0,0.00013698,2]
[332790664,1721525444981,-500.0,0.00013698,2]
[332790665,1721525444991,-3040.26,0.00013698,2]
[332790666,1721525445000,-500.0,0.00013698,2]
[332790667,1721525445010,-500.0,0.00013698,2]
[332790668,1721525445020,-4697.95,0.00013698,2]
[332790669,1721525445031,-641.82,0.00013698,2]
[332790670,1721525445041,-507.81365659,0.00013698,2]
[332790671,1721525445050,-500.0,0.00013698,2]
[332790672,1721525445060,-543.48,0.00013698,2]
[332790673,1721525445070,-691.21,0.00013698,2]
[332790674,1721525445079,-500.0,0.00013698,2]
[332790675,1721525445089,-3323.93,0.00013698,2]
[332790676,1721525445098,-500.0,0.00013698,2]
[332790677,1721525445108,-500.0,0.00013698,2]
[332790678,1721525445118,-1260.72,0.00013698,2]
[332790679,1721525445128,-11347.86,0.00013698,2]
[332790680,1721525445138,-500.0,0.00013698,2]
[332790681,1721525445147,-1035.17,0.00013698,2]
[332790682,1721525445157,-1997.73,0.00013698,2]
[332790683,1721525445167,-594.76,0.00013698,2]
[332790684,1721525445176,-500.0,0.00013698,2]
[332790685,1721525445185,-2598.17,0.00013698,2]
[332790686,1721525445195,-500.0,0.00013698,2]
[332790687,1721525445205,-465.25885834,0.00013698,2]
[332790688,1721525445214,-500.0,0.00013698,2]
[332790689,1721525445224,-500.0,0.00013698,2]
[332790690,1721525445233,-3030.35,0.00013698,2]
[332790691,1721525445243,-500.0,0.00013698,2]
[332790692,1721525445252,-1077.34,0.00013698,2]
[332790693,1721525445262,-500.0,0.00013698,2]
[332790694,1721525445271,-1114.13,0.00013698,2]
[332790695,1721525445282,-1527.86,0.00013698,2]
[332790696,1721525445291,-500.0,0.00013698,2]
[332790697,1721525445301,-500.0,0.00013698,2]
[332790698,1721525445311,-557.81,0.00013698,2]
[332790699,1721525445320,-500.0,0.00013698,2]
[332790700,1721525445330,-998.69,0.00013698,2]
[332790701,1721525445340,-500.0,0.00013698,2]
[332790702,1721525445349,-500.0,0.00013698,2]
[332790703,1721525445359,-500.0,0.00013698,2]
[332790704,1721525445368,-500.0,0.00013698,2]
[332790705,1721525445378,-1045.11,0.00013698,2]
[332790706,1721525445388,-581.5,0.00013698,2]
[332790707,1721525445397,-1989.94,0.00013698,2]
[332790708,1721525445407,-1252.6,0.00013698,2]
[332790709,1721525445416,-500.0,0.00013698,2]
[332790710,1721525445426,-512.07655604,0.00013698,2]
[332790711,1721525445436,-616.97,0.00013698,2]
[332790712,1721525445445,-509.82043443,0.00013698,2]
[332790713,1721525445455,-1368.69,0.00013698,2]
[332790714,1721525445465,-8174.31,0.00013698,2]
[332790715,1721525445474,-8174.31,0.00013698,2]
[332790716,1721525445484,-8174.31,0.00013698,2]
[332790717,1721525445493,-8174.31,0.00013698,2]
[332790718,1721525445502,-8174.31,0.00013698,2]
[332790719,1721525445512,-27254.32,0.00013698,2]
[332790720,1721525445522,-8174.31,0.00013698,2]
[332790721,1721525445534,-8174.31,0.00013698,2]
[332790722,1721525445543,-8174.31,0.00013698,2]
[332790723,1721525445553,-8174.31,0.00013698,2]
[332790724,1721525445562,-8174.31,0.00013698,2]
[332790725,1721525445571,-8174.31,0.00013698,2]
[332790726,1721525445580,-8174.31,0.00013698,2]
[332790727,1721525445590,-6635.84739792,0.00013698,2]
[332790729,1721525445957,-1538.46260208,0.00013698,2]
[332790730,1721525445969,-8174.31,0.00013698,2]
[332790731,1721525445981,-8174.31,0.00013698,2]
[332790732,1721525445992,-8174.31,0.00013698,2]
[332790733,1721525446002,-5975.73200335,0.00013698,2]
[332790734,1721525446013,-1150.26515868,0.00013698,2]
[332790735,1721525446052,-1048.31283797,0.00013698,2]
[332790736,1721525446063,-5937.92554582,0.00013698,2]
[332790737,1721525446074,-2236.38445418,0.00013698,2]
[332790738,1721525446083,-8174.31,0.00013698,2]
[332790739,1721525446092,-526.48973884,0.00013698,2]
[332790740,1721525446102,-2467.16,0.00013698,2]
[332790741,1721525446112,-500.0,0.00013698,2]
[332790742,1721525446122,-500.0,0.00013698,2]
[332790744,1721525446133,-500.0,0.00013698,2]
[332790745,1721525446142,-730.51027687,0.00013698,2]